bitfinex/quotes_SOLUSD_20260120
["timestamp","ask_amount","ask_price","bid_price","bid_amount"]
[1768871809497,9.78468928,133.57,133.52,2.58716319]
[1768871810122,7.4868056,133.57,133.52,2.58716319]
[1768871810421,9.78468928,133.57,133.53,2.58716319]
[1768871812627,11.35202558,133.57,133.53,2.58716319]
[1768871817524,9.0541419,133.57,133.53,2.58716319]
[1768871817723,11.35202558,133.57,133.53,2.58716319]
[1768871820540,120.81612454,133.58,133.55,2.69282117]
[1768871820541,102.1,133.58,133.55,2.69282117]
[1768871820737,7.48584259,133.59,133.55,2.69282117]
[1768871820936,9.7831391,133.6,133.56,2.69282117]
[1768871821136,102.1,133.61,133.56,4.99070485]
[1768871821137,1.56795582,133.61,133.56,4.99070485]
[1768871821326,3.8658395,133.61,133.57,2.69282117]
[1768871821730,11.35034762,133.61,133.57,2.69282117]
[1768871821931,20.26589156,133.63,133.58,2.69282117]
[1768871822621,16.42276459,133.65,133.6,2.69282117]
[1768871822821,120.80490194,133.66,133.61,2.69282117]
[1768871822822,3.86596023,133.66,133.61,2.69282117]
[1768871823440,1.56807655,133.66,133.62,2.69282117]
[1768871824333,11.34795527,133.66,133.62,2.69282117]
[1768871827951,3.86619093,133.65,133.61,2.69282117]
[1768871828530,1.56830725,133.65,133.61,2.69282117]
[1768871828861,3.86619093,133.65,133.61,2.69282117]
[1768871829358,1.568461,133.63,133.6,2.69282117]
[1768871829947,9.0515846,133.64,133.6,2.69282117]
[1768871830357,1.568461,133.64,133.6,2.69282117]
[1768871831359,9.05129285,133.64,133.6,2.69282117]
[1768871837871,9.05236715,133.63,133.6,2.69282117]
[1768871838042,1.56880769,133.62,133.59,2.69282117]
[1768871839246,1.56883405,133.63,133.59,2.69282117]
[1768871839449,26.16090771,133.64,133.6,2.69282117]
[1768871839450,17.94887357,133.64,133.6,2.69282117]
[1768871839643,16.38,133.64,133.61,2.69282117]
[1768871840048,113.44859075,133.66,133.61,2.69282117]
[1768871840246,111.15070707,133.66,133.62,2.69282117]
[1768871840945,9.05070707,133.66,133.62,2.69282117]
[1768871843750,7.48111019,133.67,133.63,2.54046404]
[1768871844166,9.0501246,133.67,133.63,2.54046404]
[1768871844962,9.0501246,133.67,133.64,2.54046404]
[1768871845266,9.0501246,133.67,133.64,2.51046404]
[1768871846370,9.07989152,133.68,133.64,2.51046404]
[1768871846672,111.37936528,133.69,133.64,7.48278299]
[1768871847269,111.37936528,133.69,133.65,2.54046404]
[1768871847873,9.27936528,133.69,133.66,2.54046404]
[1768871848178,0.2,133.69,133.66,2.29788368]
[1768871849963,0.2,133.69,133.66,4.83834772]
[1768871850356,0.2,133.69,133.66,2.54046404]
[1768871853459,0.2,133.69,133.67,2.54046404]
[1768871853662,0.2,133.69,133.67,2.51046404]
[1768871855573,1.86065092,133.69,133.65,2.54046404]
[1768871856589,9.34096251,133.69,133.65,2.54046404]
[1768871856884,11.6337086,133.69,133.65,2.54046404]
[1768871857085,1.66084818,133.67,133.64,2.54046404]
[1768871857864,3.95359427,133.67,133.63,2.54046404]
[1768871858091,1.66084818,133.67,133.63,2.54046404]
[1768871858276,3.95359427,133.67,133.63,2.54046404]
[1768871858480,4.15401713,133.69,133.64,2.54046404]
[1768871859475,11.63418941,133.69,133.64,2.54046404]
[1768871863672,1.66248738,133.68,133.64,2.54046404]
[1768871865596,11.4361744,133.68,133.64,2.54046404]
[1768871866888,2.29274609,133.67,133.63,2.54628877]
[1768871867198,1.66256295,133.66,133.63,2.54628877]
[1768871867592,1.66230054,133.65,133.61,2.54628877]
[1768871867780,9.14456173,133.65,133.61,2.54628877]
[1768871868092,7.48226119,133.65,133.61,2.54628877]
[1768871870293,11.43682174,133.66,133.62,2.54628877]
[1768871875901,9.14407565,133.66,133.62,2.54628877]
[1768871876096,11.43682174,133.66,133.62,2.54628877]
[1768871880706,3.95160546,133.65,133.62,2.54628877]
[1768871881205,1.65885937,133.65,133.62,2.54628877]
[1768871881702,1.65867382,133.68,133.63,2.50334749]
[1768871881885,7.6800046,133.69,133.64,4.79609358]
[1768871882091,0.2,133.69,133.66,2.50334749]
[1768871882300,0.2,133.71,133.67,2.50334749]
[1768871882600,7.67896189,133.71,133.67,2.50334749]
[1768871882993,0.2,133.71,133.68,2.50334749]
[1768871883199,0.2,133.71,133.69,2.50334749]
[1768871883602,0.2,133.73,133.69,2.50334749]
[1768871883802,0.2,133.73,133.69,4.79609358]
[1768871884020,0.2,133.73,133.7,2.50334749]
[1768871884516,0.2,133.73,133.71,2.50334749]
[1768871888823,0.1710792,133.75,133.71,2.50334749]
[1768871890525,0.1710792,133.75,133.71,7.4785339]
[1768871890735,0.1710792,133.75,133.72,2.50334749]
[1768871891031,0.1710792,133.75,133.72,2.47334749]
[1768871891823,7.64792849,133.75,133.72,2.47334749]
[1768871892546,0.1710792,133.75,133.72,2.47334749]
[1768871897619,2.47351379,133.75,133.72,2.47334749]
[1768871899036,0.1710792,133.75,133.72,2.47334749]
[1768871901236,0.2,133.77,133.75,2.50334749]
[1768871901432,0.2,133.77,133.76,2.50334749]
[1768871901625,23.48940858,133.78,133.76,2.50334749]
[1768871905716,23.48940858,133.78,133.75,2.61853871]
[1768871905916,26.17647704,133.78,133.75,2.61853871]
[1768871906218,23.48940858,133.78,133.75,2.61853871]
[1768871909638,23.48940858,133.78,133.76,2.61853871]
[1768871913217,23.48940858,133.78,133.76,7.4759184]
[1768871913418,23.48940858,133.78,133.75,7.47636817]
[1768871915236,23.48940858,133.78,133.76,2.61853871]
[1768871919549,2.74028164,133.77,133.74,10.09550501]
[1768871919929,2.74028164,133.77,133.74,2.61853871]
[1768871920531,23.48940858,133.78,133.75,2.61853871]
[1768871920732,23.48940858,133.78,133.76,2.61853871]
[1768871921362,15.07063704,133.78,133.77,2.61853871]
[1768871921544,1e-08,133.8,133.77,9.87994227]
[1768871921744,2.87440078,133.86,133.83,3.46099999]
[1768871921951,2.73998865,133.84,133.83,3.40099999]
[1768871922139,2.73998865,133.84,133.83,3.37099999]
[1768871923636,2.83998865,133.86,133.83,3.37099999]
[1768871924238,2.73998865,133.85,133.83,3.37099999]
[1768871924956,0.01871153,133.86,133.84,2.4044246]
[1768871925161,0.01871153,133.86,133.83,3.37099999]
[1768871925458,2.75870018,133.86,133.83,3.37099999]
[1768871926660,2.75870018,133.86,133.83,3.41057287]
[1768871927063,2.73998865,133.85,133.83,3.37099999]
[1768871927247,2.73998865,133.84,133.83,3.37099999]
[1768871927846,2.73998865,133.84,133.8,2.46339453]
[1768871928461,2.73998865,133.85,133.81,2.46339453]
[1768871929553,2.73998865,133.85,133.81,9.9363388]
[1768871930169,2.73998865,133.85,133.81,7.47294427]
[1768871930465,5.14441325,133.85,133.81,7.47294427]
[1768871930765,2.73998865,133.85,133.81,7.47294427]
[1768871931564,2.73998865,133.84,133.8,7.58955013]
[1768871931863,2.73998865,133.83,133.79,69.1086224]
[1768871932060,5.14441325,133.83,133.79,7.6086224]
[1768871932667,2.73998865,133.82,133.79,7.6086224]
[1768871932873,2.73998865,133.82,133.79,7.47431544]
[1768871933166,2.73998865,133.82,133.77,2.5751189]
[1768871933467,2.65706357,133.81,133.77,10.05029445]
[1768871938772,102.11871153,133.86,133.76,7.47589016]
[1768871938773,2.65706357,133.79,133.76,7.47589016]
[1768871938961,5.06148817,133.79,133.75,24.13136018]
[1768871939291,2.65706357,133.79,133.76,7.47604308]
[1768871940356,2.65706357,133.79,133.76,7.76770071]
[1768871940854,2.65706357,133.81,133.77,2.71261755]
[1768871941252,2.65706357,133.81,133.77,0.30819295]
[1768871941663,2.65706357,133.81,133.77,2.71261755]
[1768871941866,2.65706357,133.84,133.8,0.32448845]
[1768871942173,2.65706357,133.84,133.8,0.29448845]
[1768871944380,2.65706357,133.84,133.8,10.17225794]
[1768871945759,2.65706357,133.85,133.81,2.76250915]
[1768871945969,2.65706357,133.85,133.82,0.35808455]
[1768871946470,2.6757751,133.86,133.83,0.37353329]
[1768871946673,0.01871153,133.86,133.84,2.77795789]
[1768871946857,0.01871153,133.86,133.85,2.4044246]
[1768871947251,0.01871153,133.86,133.85,2.77795789]
[1768871947849,0.01871153,133.86,133.85,2.4044246]
[1768871948276,0.01871153,133.86,133.84,2.79322242]
[1768871948782,0.01871153,133.86,133.84,10.26456868]
[1768871949372,2.6757751,133.86,133.83,10.2802479]
[1768871949576,2.6757751,133.86,133.83,2.4044246]
[1768871949773,2.6757751,133.86,133.83,7.47201193]
[1768871950678,2.6757751,133.86,133.83,9.87643653]
[1768871951677,0.01871153,133.86,133.84,7.47153007]
[1768871951872,0.01871153,133.86,133.85,2.85252138]
[1768871952078,0.1,133.87,133.85,2.85252138]
[1768871952376,1e-08,133.87,133.85,2.85252138]
[1768871952568,1e-08,133.87,133.85,0.44809678]
[1768871952764,0.2,133.88,133.85,0.44809678]
[1768871952971,2.85706357,133.88,133.84,26.61304307]
[1768871953300,2.85706357,133.88,133.85,2.4044246]
[1768871953466,2.85706357,133.88,133.84,10.33844795]
[1768871953783,2.85706357,133.88,133.84,7.47153007]
[1768871953968,2.65706357,133.87,133.84,7.47153007]
[1768871954292,2.65706357,133.87,133.84,9.87595467]
[1768871955289,2.65706357,133.87,133.83,9.87659078]
[1768871955881,2.65706357,133.87,133.83,7.47216618]
[1768871956087,2.65706357,133.86,133.82,7.47256117]
[1768871956264,2.65706357,133.86,133.82,2.4044246]
[1768871956584,2.65706357,133.86,133.82,9.87700539]
[1768871957480,2.65706357,133.86,133.83,2.4044246]
[1768871959376,2.65706357,133.87,133.83,2.94991469]
[1768871959685,2.65706357,133.87,133.84,2.4044246]
[1768871959886,2.65706357,133.87,133.83,10.4216816]
[1768871961606,2.85706357,133.88,133.84,10.44743514]
[1768871962786,2.85706357,133.88,133.84,8.04301054]
[1768871962973,2.85706357,133.88,133.84,9.87549954]
[1768871963593,2.85706357,133.88,133.84,10.49842946]
[1768871964892,2.85706357,133.88,133.83,0.63536542]
[1768871965477,2.85706357,133.88,133.84,2.4044246]
[1768871966509,2.85706357,133.88,133.81,26.15649054]
[1768871966510,3.04194528,133.86,133.82,2.4044246]
[1768871967092,3.04194528,133.86,133.82,9.87688466]
[1768871969407,3.04194528,133.86,133.83,2.4044246]
[1768871970699,3.04194528,133.86,133.82,9.87688466]
[1768871971822,3.04194528,133.85,133.81,10.52513768]
[1768871972195,3.04194528,133.85,133.81,10.52527766]
[1768871972791,3.04194528,133.85,133.81,9.87766332]
[1768871972992,3.04194528,133.85,133.81,7.47323872]
[1768871973195,3.04194528,133.85,133.82,7.4726121]
[1768871973395,3.04194528,133.85,133.82,10.61780654]
[1768871974423,3.04194528,133.85,133.82,8.21338194]
[1768871974609,3.04194528,133.85,133.82,10.61780654]
[1768871974921,3.04194528,133.85,133.82,10.61504614]
[1768871975815,3.04194528,133.85,133.82,9.8742763]
[1768871976407,3.04194528,133.85,133.82,10.63699944]
[1768871977815,3.04194528,133.85,133.82,9.8742763]
[1768871978129,3.04194528,133.85,133.82,7.4726121]
[1768871978316,3.04194528,133.85,133.81,10.65895163]
[1768871978509,3.04194528,133.85,133.81,9.87476501]
[1768871978905,3.04194528,133.85,133.81,10.66950656]
[1768871979116,3.04194528,133.86,133.83,2.4016642]
[1768871979717,3.24194528,133.88,133.84,3.20681858]
[1768871980024,3.24194528,133.88,133.84,7.47136657]
[1768871980226,3.04194528,133.87,133.82,21.88862996]
[1768871980609,3.04194528,133.87,133.83,7.47185982]
[1768871981325,3.04194528,133.87,133.84,7.47151354]
[1768871981532,3.04194528,133.87,133.83,10.68902298]
[1768871982006,3.04194528,133.87,133.83,9.87358071]
[1768871982206,5.50888907,133.85,133.81,7.47319336]
[1768871982525,3.10722487,133.84,133.81,7.47319336]
[1768871982823,3.10722487,133.84,133.82,7.4726355]
[1768871983123,3.10722487,133.87,133.83,10.71920291]
[1768871983529,3.30722487,133.88,133.85,2.4016642]
[1768871984145,3.30722487,133.88,133.84,8.32677802]
[1768871984346,3.30722487,133.88,133.84,10.72844222]
[1768871985207,0.2,133.88,133.86,0.86514789]
[1768871985406,0.2,133.88,133.85,3.26681209]
[1768871985807,0.2,133.88,133.86,2.4016642]
[1768871986327,0.2,133.88,133.85,10.73736597]
[1768871990345,3.30722487,133.88,133.85,10.73736597]
[1768871991442,3.30722487,133.88,133.85,8.33570177]
[1768871991632,3.30722487,133.88,133.85,7.47055388]
[1768871991845,3.30722487,133.88,133.85,9.87221808]
[1768871992442,3.30722487,133.88,133.85,7.47055388]
[1768871992645,3.30722487,133.88,133.85,9.87221808]
[1768871994244,3.30722487,133.88,133.85,7.47055388]
[1768871994444,3.30722487,133.88,133.85,9.87221808]
[1768871995333,3.30722487,133.88,133.85,7.47055388]
[1768871995647,0.1,133.89,133.86,0.93979702]
[1768871995831,0.1,133.89,133.86,3.34146122]
[1768871996033,3.37117402,133.89,133.86,3.34146122]
[1768871996838,0.1,133.89,133.86,3.34146122]
[1768871997043,0.1,133.89,133.88,2.4016642]
[1768871997243,0.2,133.9,133.88,3.34695705]
[1768871997748,0.2,133.9,133.88,2.4016642]
[1768871999538,0.2,133.9,133.88,9.87102686]
[1768872000350,0.2,133.9,133.86,23.83040404]
[1768872000351,3.47117402,133.9,133.86,23.83040404]
[1768872000527,3.47117402,133.9,133.86,26.23206824]
[1768872000731,3.47117402,133.9,133.86,23.83040404]
[1768872000929,2.6016642,133.9,133.85,9.87258903]
[1768872001246,3.27117402,133.89,133.85,9.87258903]
[1768872001447,3.47117402,133.9,133.86,3.37347421]
[1768872001638,3.47117402,133.9,133.87,2.4016642]
[1768872001833,3.47117402,133.9,133.87,3.37347421]
[1768872002060,3.47117402,133.9,133.88,2.4016642]
[1768872002061,0.2,133.9,133.88,2.4016642]
[1768872003255,0.2,133.9,133.88,9.87052349]
[1768872005358,9.86791959,133.94,133.88,9.87052349]
[1768872005359,3.27117402,133.94,133.9,0.9869874]
[1768872005652,3.27117402,133.98,133.94,0.99192268]
[1768872005859,3.27117402,133.98,133.95,2.4016642]
[1768872006359,3.27117402,133.98,133.94,3.39358688]
[1768872006865,3.27117402,133.98,133.94,10.85912311]
[1768872007037,3.27117402,133.99,133.95,0.99677964]
[1768872007437,3.27117402,133.99,133.94,9.86720043]
[1768872007652,3.27117402,133.99,133.94,10.86881992]
[1768872008562,3.27117402,133.98,133.94,9.86720043]
[1768872011039,3.27117402,133.98,133.94,7.46553623]
[1768872012061,3.27117402,133.98,133.94,9.86720043]
[1768872013173,3.27117402,133.98,133.94,7.46553623]
[1768872013371,3.27117402,133.98,133.94,9.86720043]
[1768872013738,3.27117402,133.98,133.93,23.82649937]
[1768872013959,3.27117402,133.98,133.9,9.5467926]
[1768872013960,3.27117402,133.94,133.9,2.4016642]
[1768872014151,3.27117402,133.94,133.91,7.46747586]
[1768872014349,3.27117402,133.94,133.92,9.86877413]
[1768872015043,3.27117402,133.94,133.9,10.89897065]
[1768872015262,3.27117402,133.94,133.9,9.86959028]
[1768872015465,3.27117402,133.94,133.9,7.46792608]
[1768872016154,3.27117402,133.94,133.89,7.46873199]
[1768872016346,3.27117402,133.94,133.89,9.87039619]
[1768872016545,3.27117402,133.94,133.89,7.46873199]
[1768872016546,3.27117402,133.93,133.89,7.46873199]
[1768872016746,3.27117402,133.93,133.89,9.87039619]
[1768872017046,3.27117402,133.93,133.88,88.76474925]
[1768872017238,3.27117402,133.93,133.89,7.4687938]
[1768872017754,3.27117402,133.93,133.88,68.96916412]
[1768872018052,3.27117402,133.93,133.88,71.37082832]
[1768872018477,3.27117402,133.92,133.88,68.96916412]
[1768872018965,3.27117402,133.92,133.88,71.37082832]
[1768872019161,3.27117402,133.93,133.89,3.45277759]
[1768872019360,3.27117402,133.95,133.9,3.45277759]
[1768872019743,3.27117402,133.95,133.91,7.46770218]
[1768872021366,3.27117402,133.95,133.91,10.9288395]
[1768872022367,3.27117402,133.97,133.92,3.46522178]
[1768872022861,3.07123902,133.96,133.92,1.06355758]
[1768872023668,3.07123902,133.94,133.9,7.46806705]
[1768872024169,2.4016642,133.94,133.9,7.46806705]
[1768872024367,3.07123902,133.93,133.9,7.46806705]
[1768872024839,3.07123902,133.95,133.91,7.46758986]
[1768872025044,3.07123902,133.93,133.89,16.36]
[1768872025261,3.07123902,133.92,133.88,1.0794384]
[1768872025488,3.07123902,133.92,133.89,7.46859912]
[1768872027974,3.07123902,133.92,133.88,7.46937556]
[1768872028165,3.07123902,133.92,133.88,9.87103976]
[1768872029085,3.07123902,133.92,133.88,10.96569651]
[1768872030683,3.07123902,133.92,133.88,7.46937556]
[1768872031275,3.07123902,133.91,133.88,7.46937556]
[1768872034462,3.07123902,133.91,133.88,9.87103976]
[1768872034862,3.07123902,133.91,133.88,9.86878812]
[1768872036586,3.07123902,133.91,133.88,7.46937556]
[1768872042793,3.14983823,133.92,133.88,11.01769283]
[1768872043589,3.14983823,133.92,133.88,8.61828027]
[1768872043768,3.14983823,133.92,133.88,11.01769283]
[1768872045491,3.14983823,133.92,133.88,8.61828027]
[1768872045665,3.14983823,133.92,133.88,11.01769283]
[1768872048093,3.14983823,133.92,133.88,8.61828027]
[1768872054174,3.14983823,133.92,133.88,11.01769283]
[1768872054771,3.3639181,133.94,133.9,1.17095968]
[1768872055086,3.3639181,133.94,133.9,3.57037224]
[1768872055486,3.3639181,133.94,133.9,11.03810423]
[1768872055786,3.3639181,133.94,133.9,8.63869167]
[1768872055985,3.3639181,133.94,133.9,7.46773199]
[1768872056794,3.3639181,133.94,133.9,9.86714455]
[1768872056985,3.3639181,133.94,133.9,11.04048047]
[1768872057498,3.3639181,133.96,133.91,19.93390703]
[1768872057797,3.3639181,133.96,133.92,3.57390703]
[1768872058583,3.3639181,133.96,133.93,9.86599958]
[1768872059800,3.3639181,133.96,133.93,7.46658702]
[1768872060589,3.3639181,133.96,133.92,11.04086864]
[1768872061701,3.3639181,133.94,133.92,7.46696161]
[1768872061899,3.3639181,133.94,133.9,71.36737257]
[1768872062200,3.3639181,133.93,133.91,7.46750415]
[1768872062378,3.3639181,133.94,133.91,9.86691671]
[1768872063104,3.3639181,133.94,133.91,11.04711001]
[1768872063285,3.3639181,133.95,133.91,11.04711001]
[1768872063484,3.3639181,133.95,133.92,9.86633594]
[1768872063686,3.3639181,133.95,133.92,11.04761321]
[1768872064393,3.3639181,133.95,133.92,9.86633594]
[1768872065401,3.3639181,133.95,133.91,9.86695506]
[1768872065601,3.3639181,133.93,133.9,9.86762683]
[1768872066310,3.3639181,133.93,133.9,7.46821427]
[1768872071307,3.3639181,133.93,133.9,8.65677755]
[1768872071501,2.39941256,133.97,133.93,3.19591669]
[1768872071805,2.39941256,133.97,133.93,5.59532925]
[1768872072012,7.46324352,133.99,133.94,3.19591669]
[1768872072211,2.39941256,133.99,133.94,5.59532925]
[1768872073017,2.49941256,134.0,133.95,5.59532925]
[1768872073399,3.3639181,133.99,133.96,7.46491489]
[1768872073794,3.3639181,133.99,133.96,9.86432745]
[1768872074589,3.3639181,133.99,133.96,7.46491489]
[1768872075099,3.3639181,133.99,133.96,10.66083158]
[1768872075299,3.4639181,134.0,133.97,5.59532925]
[1768872075805,3.4639181,134.0,133.97,9.86363173]
[1768872076305,0.1,134.0,133.98,3.19591669]
[1768872076508,0.04031181,134.0,133.98,5.59532925]
[1768872076706,3.3639181,134.01,133.98,5.59532925]
[1768872077209,3.3639181,134.01,133.98,3.19591669]
[1768872077794,3.3639181,134.0,133.97,7.46421917]
[1768872078214,3.3639181,134.0,133.97,9.86363173]
[1768872080593,3.3639181,134.0,133.97,7.46421917]
[1768872080794,3.3639181,134.0,133.97,9.86363173]
[1768872081907,3.8814946,134.02,133.98,5.59532925]
[1768872082312,3.8814946,134.02,133.99,2.39941256]
[1768872082910,3.8814946,134.02,133.99,7.4630515]
[1768872083209,3.8814946,134.02,133.99,9.86246406]
[1768872084699,3.8814946,134.02,133.99,7.4630515]
[1768872084913,3.8814946,134.02,133.99,9.86246406]
[1768872085504,3.8814946,134.02,133.99,7.4630515]
[1768872085705,3.8814946,134.02,133.99,9.86246406]
[1768872086108,3.8814946,134.02,133.98,10.65946547]
[1768872086310,3.31293942,134.01,133.98,13.05887803]
[1768872086509,3.31293942,134.01,133.97,10.83958867]
[1768872086825,3.31293942,134.01,133.97,13.23900123]
[1768872087704,3.31293942,134.0,133.96,3.37543757]
[1768872088023,3.31293942,134.0,133.96,5.77485013]
[1768872088209,3.31293942,134.0,133.97,9.86375942]
[1768872088412,3.31293942,134.0,133.96,7.46471883]
[1768872088708,3.31293942,134.0,133.97,7.46423924]
[1768872089123,3.31293942,134.0,133.97,9.8636518]
[1768872090326,3.31293942,134.0,133.97,13.23908937]
[1768872092229,3.31293942,134.0,133.97,9.8636518]
[1768872092529,3.31293942,134.0,133.97,7.46423924]
[1768872092728,3.31293942,134.0,133.97,9.8636518]
[1768872093425,3.31293942,134.0,133.97,13.23908937]
[1768872093628,3.31293942,134.0,133.97,9.8636518]
[1768872095130,3.31293942,134.0,133.97,9.8606859]
[1768872095508,3.31293942,134.0,133.97,7.46423924]
[1768872095714,3.31293942,134.0,133.97,9.8606859]
[1768872095910,3.31293942,133.98,133.93,3.37543757]
[1768872096114,3.31293942,133.98,133.94,2.39644666]
[1768872096331,3.31293942,133.98,133.94,5.77188423]
[1768872098231,3.31293942,133.98,133.95,3.37543757]
[1768872098424,19.17225027,134.02,133.98,3.37543757]
[1768872098425,0.5175765,134.02,133.98,3.37543757]
[1768872098731,0.5175765,134.02,133.95,3.37543757]
[1768872098732,6.22696258,134.02,133.95,3.37543757]
[1768872099034,3.83051592,134.02,133.98,5.77188423]
[1768872099627,3.83051592,134.02,133.99,10.83868109]
[1768872099833,0.5175765,134.02,133.99,13.23512775]
[1768872101033,3.83051592,134.02,133.99,13.23512775]
[1768872101414,3.83051592,134.02,134.0,2.39644666]
[1768872101614,0.5175765,134.02,133.99,13.23512775]
[1768872102026,3.870677,134.02,133.99,13.23512775]
[1768872102732,3.81067701,134.02,133.99,13.23512775]
[1768872103631,0.45757651,134.02,133.99,13.23512775]
[1768872104013,3.81067701,134.02,133.99,13.23512775]
[1768872107721,3.81067701,134.02,133.99,10.83868109]
[1768872108041,3.81067701,134.02,134.0,2.39644666]
[1768872108340,3.81067701,134.02,133.99,3.37543757]
[1768872108514,3.81067701,134.02,133.99,9.85967892]
[1768872109043,0.1,134.08,134.02,3.28324132]
[1768872109336,0.1,134.08,134.05,5.67968798]
[1768872109640,3.4531005,134.08,134.06,2.39644666]
[1768872110015,3.4531005,134.08,134.05,3.28324132]
[1768872110215,3.4531005,134.08,134.05,10.74280909]
[1768872110442,3.4531005,134.08,134.06,2.39644666]
[1768872110838,23.10147666,134.11,134.07,3.28324132]
[1768872111021,2.49644666,134.16,134.11,8.07501882]
[1768872111218,2.49644666,134.16,134.11,5.67968798]
[1768872112122,7.55413699,134.16,134.11,5.67968798]
[1768872112336,9.95058365,134.16,134.11,5.67968798]
[1768872112929,2.56551081,134.15,134.11,5.67968798]
[1768872113132,18.90551081,134.15,134.11,5.67968798]
[1768872113448,2.56102089,134.13,134.09,2.39644666]
[1768872113945,21.29746755,134.13,134.08,13.11298758]
[1768872114123,4.9530292,134.12,134.08,3.2584191]
[1768872114317,4.9530292,134.12,134.08,13.11308715]
[1768872114534,2.55658254,134.12,134.08,13.11308715]
[1768872114733,16.34,134.11,134.08,13.11308715]
[1768872115038,16.34,134.11,134.08,5.65486576]
[1768872115625,16.34,134.1,134.08,5.65486576]
[1768872115820,16.34,134.1,134.07,5.65486576]
[1768872117026,16.34,134.1,134.06,2.39644666]
[1768872117226,16.34,134.1,134.03,18.65199695]
[1768872117227,2.53275714,134.09,134.04,10.7186627]
[1768872117541,18.87275714,134.08,134.04,13.11510936]
[1768872118352,2.53275714,134.08,134.04,13.11510936]
[1768872118636,16.34,134.07,134.04,13.11510936]
[1768872119035,16.34,134.07,134.04,3.2584191]
[1768872119618,4.9292038,134.08,134.04,3.2584191]
[1768872119823,16.34,134.07,134.04,3.2584191]
[1768872120223,4.88493341,134.06,134.01,10.72018994]
[1768872120439,4.88493341,134.06,134.02,10.71998807]
[1768872120747,16.34,134.05,134.02,13.11643473]
[1768872120958,16.34,134.05,134.03,3.2584191]
[1768872121527,16.34,134.08,134.05,3.2584191]
[1768872121729,16.34,134.08,134.06,3.2584191]
[1768872122042,18.79981415,134.09,134.05,3.2584191]
[1768872122544,18.79981415,134.09,134.05,10.71796642]
[1768872122742,2.45981415,134.09,134.05,10.71796642]
[1768872122926,18.79981415,134.09,134.05,10.71796642]
[1768872123127,21.19626081,134.09,134.05,3.2584191]
[1768872124244,4.85626081,134.09,134.05,3.2584191]
[1768872124428,21.19626081,134.09,134.05,3.2584191]
[1768872124628,21.19626081,134.09,134.05,10.71832099]
[1768872125830,4.85626081,134.09,134.05,10.71832099]
[1768872126029,2.39644666,134.09,134.06,3.2584191]
[1768872126628,26.20172015,134.1,134.06,3.2584191]
[1768872126828,2.39644666,134.09,134.06,3.2584191]
[1768872127246,2.39644666,134.09,134.05,7.45990189]
[1768872127247,4.78741179,134.09,134.05,3.2584191]
[1768872129139,4.76096659,134.1,134.06,3.2584191]
[1768872129344,18.70451993,134.1,134.06,3.2584191]
[1768872129537,2.3515247,134.11,134.06,2.39644666]
[1768872129735,2.39644666,134.11,134.07,3.2584191]
[1768872130748,26.14796647,134.12,134.07,3.2584191]
[1768872131350,28.54441313,134.12,134.07,3.2584191]
[1768872132125,28.54441313,134.12,134.07,5.65486576]
[1768872132332,9.78156038,134.13,134.09,3.2584191]
[1768872132533,9.86741843,134.16,134.12,3.2584191]
[1768872132747,4.70987441,134.15,134.11,3.2584191]
[1768872132944,2.31342775,134.14,134.1,5.65486576]
[1768872134131,2.31342775,134.14,134.1,3.2584191]
[1768872134355,2.39644666,134.13,134.1,3.2584191]
[1768872134535,12.16480248,134.14,134.1,3.2584191]
[1768872134734,4.70987441,134.14,134.1,3.2584191]
[1768872134931,12.16482967,134.14,134.1,3.2584191]
[1768872135137,4.68520016,134.12,134.08,3.2584191]
[1768872135434,4.68520016,134.12,134.08,10.71651408]
[1768872135435,2.2887535,134.12,134.08,10.71651408]
[1768872135636,2.2887535,134.12,134.08,13.11296074]
[1768872136042,2.2887535,134.12,134.08,10.71651408]
[1768872136230,2.2887535,134.12,134.08,13.11296074]
[1768872136634,2.2887535,134.12,134.08,10.71651408]
[1768872136829,2.2887535,134.12,134.06,13.11390014]
[1768872136830,4.66108947,134.11,134.06,13.11390014]
[1768872137159,2.26464281,134.09,134.05,3.2584191]
[1768872137454,2.39644666,134.09,134.06,3.2584191]
[1768872138062,4.64924143,134.09,134.05,3.2584191]
[1768872138955,2.25279477,134.09,134.05,3.2584191]
[1768872139256,4.64924143,134.09,134.05,3.2584191]
[1768872139444,4.63752947,134.07,134.03,10.71934131]
[1768872140134,2.39644666,134.07,134.04,3.2584191]
[1768872140341,2.39644666,134.08,134.04,3.2584191]
[1768872140542,4.61450759,134.08,134.04,3.2584191]
[1768872140742,2.39644666,134.07,134.04,3.2584191]
[1768872143162,2.39644666,134.06,134.03,10.78324048]
[1768872143751,4.5809569,134.07,134.03,10.78324048]
[1768872144162,2.18451024,134.07,134.03,10.78324048]
[1768872144360,4.57002926,134.06,134.02,3.32231827]
[1768872144566,2.39644666,134.05,134.02,3.32231827]
[1768872151758,2.39644666,134.04,134.02,3.32231827]
[1768872151954,2.39644666,134.04,134.01,3.32231827]
[1768872152157,4.48700762,134.02,133.97,3.32231827]
[1768872152770,4.48700762,134.02,133.98,7.4636076]
[1768872152966,4.48700762,134.02,133.98,10.78592587]
[1768872154273,2.39644666,134.01,133.98,10.78592587]